[Event "GrandPrix_29.05"]
[Site "Chess.com"]
[Date "2020.05.29"]
[Round "6"]
[White "wnstop"]
[Black "Pidzsy"]
[Result "0-1"]
[WhiteElo "2031"]
[BlackElo "2097"]
[TimeControl "600+2"]
[EndTime "12:05:41 PDT"]
[Termination "Pidzsy won by resignation"]

1. e4 {[%clk 0:10:01.9]} 1... g6 {[%clk 0:09:44.3]} 2. d4 {[%clk 0:10:01.5]}
2... Bg7 {[%clk 0:09:45]} 3. Nf3 {[%clk 0:09:59.1]} 3... d6 {[%clk 0:09:46.3]}
4. Be3 {[%clk 0:09:42.8]} 4... c6 {[%clk 0:09:46.1]} 5. Nc3 {[%clk 0:09:21.2]}
5... b5 {[%clk 0:09:45.5]} 6. Bd3 {[%clk 0:09:18.8]} 6... Nd7 {[%clk 0:09:44.2]}
7. a4 {[%clk 0:09:19.2]} 7... b4 {[%clk 0:09:44.3]} 8. Ne2 {[%clk 0:09:20]} 8...
c5 {[%clk 0:09:44.8]} 9. c3 {[%clk 0:09:15.8]} 9... bxc3 {[%clk 0:09:38.9]} 10.
bxc3 {[%clk 0:09:17]} 10... Ngf6 {[%clk 0:09:40.6]} 11. O-O {[%clk 0:09:08.6]}
11... O-O {[%clk 0:09:41.4]} 12. h3 {[%clk 0:09:06.4]} 12... c4 {[%clk
0:09:31.5]} 13. Bc2 {[%clk 0:09:02.5]} 13... Bb7 {[%clk 0:09:28.8]} 14. Ng3
{[%clk 0:08:47.7]} 14... Qa5 {[%clk 0:09:18.2]} 15. Qd2 {[%clk 0:08:35.2]} 15...
Rab8 {[%clk 0:09:17.1]} 16. Rab1 {[%clk 0:08:22.1]} 16... Ba6 {[%clk 0:09:02]}
17. d5 {[%clk 0:08:01.5]} 17... Ne5 {[%clk 0:08:43.5]} 18. Nxe5 {[%clk
0:06:55.5]} 18... dxe5 {[%clk 0:08:45.4]} 19. Bxa7 {[%clk 0:06:56.1]} 19... Rb3
{[%clk 0:08:26.6]} 20. Bxb3 {[%clk 0:05:55.4]} 20... cxb3 {[%clk 0:08:28.5]} 21.
Rfe1 {[%clk 0:05:31.2]} 21... Bc4 {[%clk 0:08:29.3]} 22. Be3 {[%clk 0:05:24.4]}
22... Rb8 {[%clk 0:08:17.4]} 23. Qb2 {[%clk 0:05:11.1]} 23... Qxa4 {[%clk
0:08:04.3]} 24. Bc5 {[%clk 0:05:10.3]} 24... Qd7 {[%clk 0:07:37.9]} 25. Ra1
{[%clk 0:05:01.7]} 25... Qc7 {[%clk 0:07:36.9]} 26. Bb4 {[%clk 0:04:50.8]} 26...
h5 {[%clk 0:07:32.9]} 27. Nf1 {[%clk 0:04:44.3]} 27... Bxf1 {[%clk 0:07:16.9]}
28. Kxf1 {[%clk 0:04:43.4]} 28... Qc4+ {[%clk 0:07:12.3]} 29. Qe2 {[%clk
0:03:54.6]} 29... Nxe4 {[%clk 0:07:12.1]} 30. Qxc4 {[%clk 0:03:54.7]} 30... Nd2+
{[%clk 0:07:12.8]} 31. Ke2 {[%clk 0:03:55.9]} 31... Nxc4 {[%clk 0:07:13.7]} 32.
Reb1 {[%clk 0:03:34.1]} 32... b2 {[%clk 0:07:00.9]} 33. Ra7 {[%clk 0:03:34.7]}
33... e4 {[%clk 0:06:18.4]} 34. Rxe7 {[%clk 0:02:46.2]} 34... Bh6 {[%clk
0:03:30.6]} 35. d6 {[%clk 0:01:11.6]} 35... Rd8 {[%clk 0:03:31.3]} 36. d7 {[%clk
0:00:44.2]} 36... Kg7 {[%clk 0:03:32.3]} 37. Bc5 {[%clk 0:00:03.3]} 37... Bg5
{[%clk 0:02:45.6]} 38. Bd4+ {[%clk 0:00:04.2]} 38... Kf8 {[%clk 0:02:41]} 39.
Rxe4 {[%clk 0:00:05.5]} 39... Nd6 {[%clk 0:01:59.5]} 40. Bc5 {[%clk 0:00:06.2]}
40... Rxd7 {[%clk 0:02:00.9]} 41. Bxd6+ {[%clk 0:00:07.1]} 41... Rxd6 {[%clk
0:02:01.9]} 42. Rxb2 {[%clk 0:00:08.6]} 42... Kg7 {[%clk 0:02:03.2]} 43. f4
{[%clk 0:00:09.2]} 43... Bf6 {[%clk 0:02:03.9]} 44. Rc2 {[%clk 0:00:10.6]} 44...
Rc6 {[%clk 0:01:44.6]} 45. c4 {[%clk 0:00:11.6]} 45... Rc5 {[%clk 0:01:46.3]}
46. Re3 {[%clk 0:00:10.1]} 46... Bd8 {[%clk 0:01:45.5]} 47. Rd3 {[%clk
0:00:10.6]} 47... Bc7 {[%clk 0:01:46.8]} 48. Kf3 {[%clk 0:00:09.1]} 48... Rf5
{[%clk 0:01:47.2]} 49. g3 {[%clk 0:00:08.8]} 49... h4 {[%clk 0:01:48]} 50. Rd5
{[%clk 0:00:09.6]} 50... Rf6 {[%clk 0:01:49.4]} 51. Rd4 {[%clk 0:00:04]} 51...
hxg3 {[%clk 0:01:49.7]} 52. Kxg3 {[%clk 0:00:05.5]} 52... g5 {[%clk 0:01:51.3]}
53. c5 {[%clk 0:00:06.3]} 53... Bxf4+ {[%clk 0:01:49.7]} 54. Kg4 {[%clk
0:00:06.8]} 54... Rc6 {[%clk 0:01:47.6]} 55. Rd5 {[%clk 0:00:07.2]} 55... Kg6
{[%clk 0:01:47.4]} 56. Ra2 {[%clk 0:00:07.1]} 56... f6 {[%clk 0:01:45.8]} 57.
Rb2 {[%clk 0:00:06.9]} 57... Ra6 {[%clk 0:01:44.2]} 58. Kf3 {[%clk 0:00:07.3]}
58... Ra3+ {[%clk 0:01:45]} 59. Kg2 {[%clk 0:00:07.7]} 59... Rg3+ {[%clk
0:01:46]} 60. Kf1 {[%clk 0:00:08.8]} 60... Rxh3 {[%clk 0:01:47]} 61. Rg2 {[%clk
0:00:04.8]} 61... Rc3 {[%clk 0:01:46.7]} 62. Ke1 {[%clk 0:00:05.1]} 62... Kh5
{[%clk 0:01:44.6]} 63. Kd1 {[%clk 0:00:05.4]} 63... Kh4 {[%clk 0:01:44.5]} 64.
Rd8 {[%clk 0:00:05.4]} 64... Kh3 {[%clk 0:01:43.5]} 65. Rc2 {[%clk 0:00:06.3]}
65... Rxc2 {[%clk 0:01:25.9]} 66. Kxc2 {[%clk 0:00:08.2]} 66... g4 {[%clk
0:01:26.4]} 67. Rh8+ {[%clk 0:00:05.7]} 67... Kg2 {[%clk 0:01:27.1]} 68. Kd3
{[%clk 0:00:05.8]} 68... Kf3 {[%clk 0:01:26.7]} 69. c6 {[%clk 0:00:06.1]} 69...
g3 {[%clk 0:01:27.8]} 70. Rg8 {[%clk 0:00:03.6]} 70... g2 {[%clk 0:01:28.5]} 71.
Rg6 {[%clk 0:00:04.7]} 71... f5 {[%clk 0:01:28.7]} 72. Rg7 {[%clk 0:00:03.1]}
72... Be5 {[%clk 0:01:25.7]} 73. Rg5 {[%clk 0:00:03.8]} 73... Bf4 {[%clk
0:01:23]} 74. Rg6 {[%clk 0:00:04.4]} 74... Bc7 {[%clk 0:01:19.1]} 75. Kd4 {[%clk
0:00:04.7]} 75... f4 {[%clk 0:01:18.9]} 76. Kd3 {[%clk 0:00:05.7]} 76... Kf2
{[%clk 0:01:19.3]} 77. Rg7 {[%clk 0:00:07.2]} 77... f3 {[%clk 0:01:20.4]} 78.
Rxc7 {[%clk 0:00:08]} 78... g1=Q {[%clk 0:01:20.8]} 79. Rd7 {[%clk 0:00:09.4]}
79... Qd1+ {[%clk 0:01:21]} 80. Ke4 {[%clk 0:00:10.8]} 80... Qc2+ {[%clk
0:01:21.1]} 81. Kd5 {[%clk 0:00:12.2]} 81... Ke3 {[%clk 0:01:19.5]} 82. c7
{[%clk 0:00:12.8]} 82... f2 {[%clk 0:01:20.8]} 83. Re7+ {[%clk 0:00:14.1]} 83...
Kd3 {[%clk 0:01:20.2]} 84. Rf7 {[%clk 0:00:14.8]} 84... Qc4+ {[%clk 0:01:20.9]}
85. Kd6 {[%clk 0:00:16.3]} 85... Qxf7 {[%clk 0:01:20.7]} 86. c8=Q {[%clk
0:00:17.8]} 86... Qf4+ {[%clk 0:01:21.3]} 87. Kd5 {[%clk 0:00:17.3]} 87... Qe4+
{[%clk 0:01:19.6]} 88. Kd6 {[%clk 0:00:18.5]} 88... Qd4+ {[%clk 0:01:16.9]} 89.
Ke7 {[%clk 0:00:18.6]} 89... f1=Q {[%clk 0:01:17.3]} 90. Qa6+ {[%clk 0:00:18.3]}
90... Qc4 {[%clk 0:01:18.6]} 91. Qa3+ {[%clk 0:00:16.3]} 91... Kd2 {[%clk
0:01:18]} 92. Qb2+ {[%clk 0:00:16.8]} 92... Ke3 {[%clk 0:01:17.9]} 93. Qb6+
{[%clk 0:00:11]} 93... Qd4 {[%clk 0:01:18.6]} 94. Qh6+ {[%clk 0:00:11.1]} 94...
Qff4 {[%clk 0:01:18.8]} 95. Qh3+ {[%clk 0:00:11]} 95... Qf3 {[%clk 0:01:19.8]}
96. Qh6+ {[%clk 0:00:10.9]} 96... Qdf4 {[%clk 0:01:19]} 97. Qb6+ {[%clk
0:00:11.4]} 97... Ke2 {[%clk 0:01:19.5]} 98. Qb2+ {[%clk 0:00:12.3]} 98... Kf1
{[%clk 0:01:19.6]} 99. Qb1+ {[%clk 0:00:11.7]} 99... Kf2 {[%clk 0:01:20.4]} 0-1

[Event "GrandPrix_29.05"]
[Site "Chess.com"]
[Date "2020.05.29"]
[Round "6"]
[White "SamadovRead"]
[Black "ALeks_Ivlev"]
[Result "1-0"]
[WhiteElo "1978"]
[BlackElo "2012"]
[TimeControl "600+2"]
[EndTime "12:05:42 PDT"]
[Termination "SamadovRead won by resignation"]

1. d4 {[%clk 0:10:01.9]} 1... Nf6 {[%clk 0:09:55.4]} 2. c4 {[%clk 0:10:01.7]}
2... c6 {[%clk 0:09:51.7]} 3. Nf3 {[%clk 0:10:01]} 3... d5 {[%clk 0:09:52]} 4.
Nc3 {[%clk 0:10:01.6]} 4... e6 {[%clk 0:09:42.3]} 5. e3 {[%clk 0:10:01]} 5...
Nbd7 {[%clk 0:09:42.8]} 6. Bd3 {[%clk 0:10:00.8]} 6... dxc4 {[%clk 0:09:43.7]}
7. Bxc4 {[%clk 0:10:02.3]} 7... b5 {[%clk 0:09:45]} 8. Bd3 {[%clk 0:10:03.2]}
8... Bd6 {[%clk 0:09:45.5]} 9. O-O {[%clk 0:10:02.3]} 9... O-O {[%clk
0:09:46.1]} 10. Bd2 {[%clk 0:09:58.2]} 10... a6 {[%clk 0:09:35.9]} 11. a4 {[%clk
0:09:55.3]} 11... Bb7 {[%clk 0:09:33.5]} 12. Rc1 {[%clk 0:09:50.6]} 12... Qe7
{[%clk 0:08:39.5]} 13. Ne4 {[%clk 0:06:57.5]} 13... Nxe4 {[%clk 0:08:11.2]} 14.
Bxe4 {[%clk 0:06:58.4]} 14... Rac8 {[%clk 0:08:11.7]} 15. Qe2 {[%clk 0:03:56.1]}
15... Nb6 {[%clk 0:05:48.4]} 16. b3 {[%clk 0:03:43.2]} 16... Nd5 {[%clk
0:04:43.5]} 17. Rfd1 {[%clk 0:03:25.7]} 17... bxa4 {[%clk 0:04:25.6]} 18. bxa4
{[%clk 0:03:26.3]} 18... c5 {[%clk 0:04:26.9]} 19. dxc5 {[%clk 0:03:10.7]} 19...
Bxc5 {[%clk 0:04:23.9]} 20. Bb1 {[%clk 0:02:54.6]} 20... Rfd8 {[%clk 0:03:47.1]}
21. Ba5 {[%clk 0:02:50.1]} 21... Bb6 {[%clk 0:03:20.9]} 22. Bxb6 {[%clk
0:02:32.5]} 22... Nxb6 {[%clk 0:03:20.8]} 23. a5 {[%clk 0:02:22.4]} 23... Nd5
{[%clk 0:03:10.6]} 24. Qe1 {[%clk 0:01:59.5]} 24... Qa3 {[%clk 0:02:47]} 25.
Rxc8 {[%clk 0:01:54.5]} 25... Rxc8 {[%clk 0:02:46.5]} 26. Be4 {[%clk 0:01:43.5]}
26... Ba8 {[%clk 0:01:43.7]} 27. Ra1 {[%clk 0:01:38.2]} 27... Qb2 {[%clk
0:01:29.6]} 28. Rb1 {[%clk 0:01:35.1]} 28... Qa2 {[%clk 0:01:27.2]} 29. Rc1
{[%clk 0:01:21.4]} 29... Rb8 {[%clk 0:01:11.1]} 30. Nd4 {[%clk 0:00:49.4]} 30...
g6 {[%clk 0:01:07.9]} 31. h4 {[%clk 0:00:45.9]} 31... Qa3 {[%clk 0:00:52.2]} 32.
h5 {[%clk 0:00:35.6]} 32... Qe7 {[%clk 0:00:24.5]} 33. h6 {[%clk 0:00:33.7]}
33... Qg5 {[%clk 0:00:24.2]} 34. Nc6 {[%clk 0:00:27.7]} 34... Bxc6 {[%clk
0:00:24.6]} 35. Rxc6 {[%clk 0:00:28.3]} 35... Qxh6 {[%clk 0:00:15.7]} 36. Rxa6
{[%clk 0:00:27.8]} 36... Qg5 {[%clk 0:00:14.8]} 37. Rc6 {[%clk 0:00:23.2]} 37...
Nf6 {[%clk 0:00:15.6]} 38. Bf3 {[%clk 0:00:22.3]} 38... Qf5 {[%clk 0:00:13.4]}
39. Rb6 {[%clk 0:00:22.9]} 39... Rc8 {[%clk 0:00:09.1]} 40. a6 {[%clk
0:00:22.6]} 40... Qc5 {[%clk 0:00:09.2]} 41. Rb1 {[%clk 0:00:21.4]} 41... g5
{[%clk 0:00:09.5]} 42. Ra1 {[%clk 0:00:20.6]} 42... g4 {[%clk 0:00:10.1]} 43.
Bb7 {[%clk 0:00:20.3]} 43... Rd8 {[%clk 0:00:05.4]} 44. a7 {[%clk 0:00:20.8]}
44... g3 {[%clk 0:00:06.3]} 45. a8=Q {[%clk 0:00:19.2]} 45... Rxa8 {[%clk
0:00:06.2]} 46. Rxa8+ {[%clk 0:00:19.4]} 46... Kg7 {[%clk 0:00:08.1]} 47. fxg3
{[%clk 0:00:20]} 47... Qb6 {[%clk 0:00:08.8]} 48. Bf3 {[%clk 0:00:20.1]} 48...
Qd6 {[%clk 0:00:09]} 49. Ra1 {[%clk 0:00:20.1]} 49... Qe5 {[%clk 0:00:09.9]} 50.
Rd1 {[%clk 0:00:21.1]} 50... Qg5 {[%clk 0:00:10.8]} 51. Qf2 {[%clk 0:00:22.1]}
51... h6 {[%clk 0:00:11.1]} 52. Rf1 {[%clk 0:00:23]} 52... Qg6 {[%clk 0:00:11]}
53. g4 {[%clk 0:00:23.8]} 53... Qg5 {[%clk 0:00:12]} 54. Qd2 {[%clk 0:00:22.6]}
54... e5 {[%clk 0:00:09.8]} 55. Bd1 {[%clk 0:00:22.7]} 55... Ne4 {[%clk
0:00:06.9]} 56. Qd3 {[%clk 0:00:19.3]} 56... Ng3 {[%clk 0:00:05.8]} 57. Rf3
{[%clk 0:00:19.5]} 57... Qh4 {[%clk 0:00:06.8]} 58. Rxg3 {[%clk 0:00:15.8]}
58... Qxg3 {[%clk 0:00:08]} 59. Qe2 {[%clk 0:00:14.6]} 59... e4 {[%clk 0:00:06]}
60. Qf2 {[%clk 0:00:15]} 60... Qd6 {[%clk 0:00:05.8]} 61. Bc2 {[%clk 0:00:15.4]}
61... Qc6 {[%clk 0:00:04.9]} 62. Kh2 {[%clk 0:00:13.2]} 62... Qc7+ {[%clk
0:00:05.4]} 63. g3 {[%clk 0:00:13]} 63... Qc4 {[%clk 0:00:05.7]} 64. Bd1 {[%clk
0:00:13.1]} 64... Qd3 {[%clk 0:00:06.3]} 65. Be2 {[%clk 0:00:14.3]} 65... Qd2
{[%clk 0:00:06.7]} 66. Kg2 {[%clk 0:00:15.7]} 66... Qd5 {[%clk 0:00:07.5]} 67.
Qf5 {[%clk 0:00:14.4]} 67... Qc6 {[%clk 0:00:06.5]} 68. Qe5+ {[%clk 0:00:15.2]}
68... f6 {[%clk 0:00:07.3]} 69. Qe7+ {[%clk 0:00:15.6]} 69... Kg6 {[%clk
0:00:08]} 70. Qf8 {[%clk 0:00:16.1]} 70... Qe6 {[%clk 0:00:07.8]} 71. Kf2 {[%clk
0:00:13]} 71... Qd5 {[%clk 0:00:07]} 72. Qe8+ {[%clk 0:00:12.3]} 72... Kg7
{[%clk 0:00:08]} 73. Qe7+ {[%clk 0:00:13.7]} 73... Kg6 {[%clk 0:00:09.3]} 74.
Qf8 {[%clk 0:00:12.5]} 74... Qe6 {[%clk 0:00:10.1]} 75. Bd1 {[%clk 0:00:09.7]}
75... Qa2+ {[%clk 0:00:10.9]} 76. Ke1 {[%clk 0:00:07.9]} 76... Qa5+ {[%clk
0:00:11.7]} 77. Kf1 {[%clk 0:00:08]} 77... Qb5+ {[%clk 0:00:12.4]} 78. Be2
{[%clk 0:00:09]} 78... Qb1+ {[%clk 0:00:12.2]} 79. Kf2 {[%clk 0:00:10.3]} 79...
Qb3 {[%clk 0:00:10.7]} 80. Qe8+ {[%clk 0:00:11.2]} 80... Kg7 {[%clk 0:00:11.5]}
81. Qxe4 {[%clk 0:00:12.4]} 81... Qb2 {[%clk 0:00:12.1]} 82. Qe7+ {[%clk
0:00:12.7]} 82... Kg6 {[%clk 0:00:13.1]} 83. Kf3 {[%clk 0:00:13.8]} 83... Qb1
{[%clk 0:00:12.5]} 84. Qe4+ {[%clk 0:00:14.2]} 84... Qxe4+ {[%clk 0:00:13.2]}
85. Kxe4 {[%clk 0:00:16.1]} 85... Kg5 {[%clk 0:00:15.1]} 86. Kf3 {[%clk
0:00:16.1]} 1-0

[Event "GrandPrix_29.05"]
[Site "Chess.com"]
[Date "2020.05.29"]
[Round "6"]
[White "Herracek"]
[Black "BakaPG"]
[Result "1-0"]
[WhiteElo "2477"]
[BlackElo "2229"]
[TimeControl "600+2"]
[EndTime "12:05:46 PDT"]
[Termination "Herracek won by resignation"]

1. c4 {[%clk 0:10:00.1]} 1... e5 {[%clk 0:09:55.5]} 2. g3 {[%clk 0:10:00.7]}
2... Nc6 {[%clk 0:09:54.7]} 3. Bg2 {[%clk 0:10:01.5]} 3... Bc5 {[%clk
0:09:54.5]} 4. Nf3 {[%clk 0:10:01.1]} 4... d6 {[%clk 0:09:26.4]} 5. O-O {[%clk
0:10:01.2]} 5... e4 {[%clk 0:09:19.2]} 6. Ne1 {[%clk 0:10:00.7]} 6... Nf6 {[%clk
0:09:13.4]} 7. d3 {[%clk 0:10:01.4]} 7... exd3 {[%clk 0:09:07.2]} 8. Nxd3 {[%clk
0:10:01.3]} 8... Bb6 {[%clk 0:09:07.3]} 9. Nc3 {[%clk 0:10:02]} 9... h6 {[%clk
0:08:51.3]} 10. b4 {[%clk 0:10:02.6]} 10... a5 {[%clk 0:08:39.2]} 11. b5 {[%clk
0:10:03.5]} 11... Ne7 {[%clk 0:08:34.7]} 12. Bb2 {[%clk 0:09:49.8]} 12... O-O
{[%clk 0:07:23.1]} 13. Na4 {[%clk 0:09:50.3]} 13... Nd7 {[%clk 0:07:23.6]} 14.
Nf4 {[%clk 0:09:30]} 14... Ba7 {[%clk 0:06:55]} 15. Nh5 {[%clk 0:09:29.4]} 15...
Ne5 {[%clk 0:06:41.2]} 16. c5 {[%clk 0:09:25.8]} 16... Nf5 {[%clk 0:06:32.6]}
17. e4 {[%clk 0:08:55.5]} 17... Ne3 {[%clk 0:06:08.7]} 18. fxe3 {[%clk
0:08:48.1]} 18... Bg4 {[%clk 0:06:08.5]} 19. Nf6+ {[%clk 0:08:13.5]} 19... gxf6
{[%clk 0:05:55.2]} 20. Qc2 {[%clk 0:07:48.3]} 20... dxc5 {[%clk 0:05:51.4]} 21.
h3 {[%clk 0:07:49.2]} 21... Bd7 {[%clk 0:05:32]} 22. Rad1 {[%clk 0:07:27]} 22...
Qe7 {[%clk 0:05:26.1]} 23. Nc3 {[%clk 0:07:27.6]} 23... c6 {[%clk 0:05:23.7]}
24. Qe2 {[%clk 0:07:02.7]} 24... c4 {[%clk 0:05:21]} 25. Kh2 {[%clk 0:07:02]}
25... Kg7 {[%clk 0:05:12.2]} 26. bxc6 {[%clk 0:06:58.3]} 26... bxc6 {[%clk
0:05:11.8]} 27. Rf4 {[%clk 0:06:50.1]} 27... Rab8 {[%clk 0:04:10.5]} 28. Ba1
{[%clk 0:06:40.5]} 28... Qc5 {[%clk 0:04:04.3]} 29. Rdf1 {[%clk 0:06:19.6]}
29... Qxe3 {[%clk 0:03:30.7]} 30. Qh5 {[%clk 0:06:19.3]} 30... Bd4 {[%clk
0:03:17.2]} 31. Nd1 {[%clk 0:06:02]} 31... Qd2 {[%clk 0:03:02.3]} 32. Bxd4
{[%clk 0:05:57.6]} 32... Qxd4 {[%clk 0:03:02]} 33. Rxf6 {[%clk 0:05:10]} 33...
Ng6 {[%clk 0:02:54.7]} 34. Qxa5 {[%clk 0:04:59]} 34... Rb1 {[%clk 0:02:25.6]}
35. Nc3 {[%clk 0:04:32.9]} 35... Rxf1 {[%clk 0:02:20.1]} 36. Rxf1 {[%clk
0:04:32.2]} 36... Ne5 {[%clk 0:02:17.2]} 37. Rd1 {[%clk 0:04:26.1]} 37... Nd3
{[%clk 0:02:17.7]} 38. Ne2 {[%clk 0:04:21.2]} 38... Qb2 {[%clk 0:02:03.2]} 39.
Nf4 {[%clk 0:04:00.2]} 39... Be6 {[%clk 0:01:38]} 40. Nxd3 {[%clk 0:03:16.8]}
40... cxd3 {[%clk 0:01:36.9]} 41. Rxd3 {[%clk 0:03:13.7]} 41... Rb8 {[%clk
0:01:22.3]} 42. Rd2 {[%clk 0:03:11.6]} 42... Qf6 {[%clk 0:01:04.5]} 43. Qc5
{[%clk 0:02:58.7]} 43... Qg5 {[%clk 0:00:51.4]} 44. Qc3+ {[%clk 0:02:55.7]}
44... Kh7 {[%clk 0:00:49.7]} 45. Rf2 {[%clk 0:02:45.9]} 45... c5 {[%clk
0:00:46.5]} 46. e5 {[%clk 0:02:41.1]} 46... c4 {[%clk 0:00:39.8]} 47. Qd4 {[%clk
0:02:06]} 47... Kg7 {[%clk 0:00:36.3]} 48. h4 {[%clk 0:01:57.5]} 48... Qe7
{[%clk 0:00:34.9]} 49. a4 {[%clk 0:01:54]} 49... Rb3 {[%clk 0:00:33.2]} 50. Rf6
{[%clk 0:01:46.8]} 50... Qa3 {[%clk 0:00:30.6]} 51. Qf4 {[%clk 0:01:47.5]} 51...
Rb2 {[%clk 0:00:20.9]} 52. Qxh6+ {[%clk 0:01:41.8]} 52... Kg8 {[%clk 0:00:21.9]}
53. Rxe6 {[%clk 0:01:36.6]} 53... fxe6 {[%clk 0:00:17.5]} 54. Qxe6+ {[%clk
0:01:37.2]} 54... Kg7 {[%clk 0:00:18.6]} 55. Qf6+ {[%clk 0:01:23.3]} 55... Kh7
{[%clk 0:00:18.6]} 56. Qf7+ {[%clk 0:01:17.4]} 56... Kh8 {[%clk 0:00:17.4]} 57.
e6 {[%clk 0:00:51.5]} 57... Qa2 {[%clk 0:00:17.1]} 58. Qf3 {[%clk 0:00:44.1]}
58... c3 {[%clk 0:00:06.8]} 59. e7 {[%clk 0:00:44.8]} 59... Re2 {[%clk
0:00:06.9]} 60. Qf8+ {[%clk 0:00:43.3]} 60... Kh7 {[%clk 0:00:07.8]} 61. e8=Q
{[%clk 0:00:38.8]} 61... Rxe8 {[%clk 0:00:04.9]} 62. Qxe8 {[%clk 0:00:39.4]}
62... c2 {[%clk 0:00:05.3]} 63. Qe2 {[%clk 0:00:38.9]} 63... Kg7 {[%clk
0:00:05.4]} 64. Be4 {[%clk 0:00:38]} 64... Qxa4 {[%clk 0:00:03.4]} 65. Qxc2
{[%clk 0:00:38.2]} 65... Qd4 {[%clk 0:00:04.6]} 66. Qe2 {[%clk 0:00:36.2]} 66...
Kh6 {[%clk 0:00:04.2]} 67. Bg2 {[%clk 0:00:36.9]} 67... Qf6 {[%clk 0:00:03.7]}
68. Qf3 {[%clk 0:00:37.6]} 68... Qa1 {[%clk 0:00:02.7]} 69. Qf4+ {[%clk
0:00:38.5]} 69... Kg7 {[%clk 0:00:04.1]} 70. h5 {[%clk 0:00:38.9]} 70... Kh7
{[%clk 0:00:04.7]} 71. Be4+ {[%clk 0:00:39.4]} 71... Kg7 {[%clk 0:00:05.5]} 72.
h6+ {[%clk 0:00:40.7]} 72... Kg8 {[%clk 0:00:05.6]} 73. Qg5+ {[%clk 0:00:38.2]}
73... Kf8 {[%clk 0:00:05.5]} 74. Qf5+ {[%clk 0:00:38.2]} 74... Ke7 {[%clk
0:00:05.9]} 75. h7 {[%clk 0:00:38.7]} 75... Qb2+ {[%clk 0:00:06]} 76. Bg2 {[%clk
0:00:39.6]} 76... Qg7 {[%clk 0:00:05.6]} 77. Qe4+ {[%clk 0:00:37.5]} 77... Kd6
{[%clk 0:00:06.1]} 78. Qf4+ {[%clk 0:00:37.3]} 78... Kc5 {[%clk 0:00:06.1]} 79.
Qh4 {[%clk 0:00:37.4]} 79... Qh8 {[%clk 0:00:06.4]} 80. Be4 {[%clk 0:00:37.5]}
80... Kd6 {[%clk 0:00:06.9]} 81. Kh3 {[%clk 0:00:35.5]} 81... Ke6 {[%clk
0:00:06.1]} 82. Qg4+ {[%clk 0:00:36.1]} 82... Ke5 {[%clk 0:00:04.6]} 83. Qg8
{[%clk 0:00:32.4]} 1-0